[Event "Late-Titled-Tuesday-Blitz-October-24-2023"]
[Site "Chess.com"]
[Date "2023.10.24"]
[Round "3"]
[White "aa175"]
[Black "el_sporco"]
[Result "0-1"]
[WhiteElo "2587"]
[BlackElo "2419"]
[TimeControl "180+1"]
[EndTime "14:29:09 PDT"]
[Termination "el_sporco won by checkmate"]

1. d4 {[%clk 0:03:00.9]} 1... Nf6 {[%clk 0:02:59.7]} 2. Nf3 {[%clk 0:03:00.1]}
2... e6 {[%clk 0:02:59.6]} 3. Bf4 {[%clk 0:03:00.2]} 3... d6 {[%clk 0:02:58.4]}
4. e3 {[%clk 0:03:00.5]} 4... c5 {[%clk 0:02:57.6]} 5. dxc5 {[%clk 0:02:59.8]}
5... Qa5+ {[%clk 0:02:54.4]} 6. Nbd2 {[%clk 0:02:58.5]} 6... Qxc5 {[%clk
0:02:52.9]} 7. c3 {[%clk 0:02:55.7]} 7... Qc7 {[%clk 0:02:52.6]} 8. Nc4 {[%clk
0:02:53.8]} 8... e5 {[%clk 0:02:52]} 9. Nfxe5 {[%clk 0:02:53.7]} 9... dxe5
{[%clk 0:02:51.1]} 10. Bxe5 {[%clk 0:02:54.6]} 10... Qc6 {[%clk 0:02:38.7]} 11.
a4 {[%clk 0:02:53.4]} 11... a6 {[%clk 0:02:25.9]} 12. Nd6+ {[%clk 0:01:53.3]}
12... Bxd6 {[%clk 0:02:23.7]} 13. Bxd6 {[%clk 0:01:54.2]} 13... Qd5 {[%clk
0:02:18]} 14. c4 {[%clk 0:01:39.3]} 14... Qxd1+ {[%clk 0:02:16.8]} 15. Rxd1
{[%clk 0:01:40.2]} 15... Be6 {[%clk 0:02:16.8]} 16. f3 {[%clk 0:01:39.2]} 16...
Nc6 {[%clk 0:02:15.7]} 17. e4 {[%clk 0:01:38.1]} 17... O-O-O {[%clk 0:02:15.5]}
18. c5 {[%clk 0:01:32.9]} 18... Rhe8 {[%clk 0:01:58.3]} 19. Kf2 {[%clk
0:01:29.4]} 19... Nd7 {[%clk 0:01:48.6]} 20. b4 {[%clk 0:01:08.2]} 20... Nxb4
{[%clk 0:01:43.1]} 21. Rb1 {[%clk 0:01:08.7]} 21... Nc6 {[%clk 0:01:35.8]} 22.
Be2 {[%clk 0:00:41.1]} 22... f5 {[%clk 0:01:32.1]} 23. Rb2 {[%clk 0:00:33.5]}
23... fxe4 {[%clk 0:01:25.7]} 24. fxe4 {[%clk 0:00:34.4]} 24... Nf6 {[%clk
0:01:16]} 25. Ke3 {[%clk 0:00:13.2]} 25... Bd5 {[%clk 0:01:09.7]} 26. Rhb1
{[%clk 0:00:10.6]} 26... Rxe4+ {[%clk 0:01:02.6]} 27. Kf2 {[%clk 0:00:05.7]}
27... Nd4 {[%clk 0:00:45.4]} 28. Bxa6 {[%clk 0:00:02.2]} 28... bxa6 {[%clk
0:00:37.1]} 29. Rb8+ {[%clk 0:00:02]} 29... Kd7 {[%clk 0:00:37.7]} 30. Rxd8+
{[%clk 0:00:01.6]} 30... Kxd8 {[%clk 0:00:38.6]} 31. Rb7 {[%clk 0:00:01.5]}
31... Re2+ {[%clk 0:00:35.3]} 32. Kf1 {[%clk 0:00:01.2]} 32... Bxg2+ {[%clk
0:00:34.2]} 33. Kg1 {[%clk 0:00:01.8]} 33... Nf3# {[%clk 0:00:34.2]} 0-1

[Event "Late-Titled-Tuesday-Blitz-October-24-2023"]
[Site "Chess.com"]
[Date "2023.10.24"]
[Round "3"]
[White "TigrVShlyape"]
[Black "Tonychess32"]
[Result "1-0"]
[WhiteElo "2833"]
[BlackElo "2515"]
[TimeControl "180+1"]
[EndTime "14:29:10 PDT"]
[Termination "TigrVShlyape won on time"]

1. d4 {[%clk 0:03:00.9]} 1... Nf6 {[%clk 0:02:58.6]} 2. Bf4 {[%clk 0:02:59.9]}
2... e6 {[%clk 0:02:57]} 3. Nf3 {[%clk 0:02:59.1]} 3... c5 {[%clk 0:02:57.1]} 4.
e3 {[%clk 0:02:58.9]} 4... cxd4 {[%clk 0:02:56.9]} 5. exd4 {[%clk 0:02:58.4]}
5... d5 {[%clk 0:02:57.2]} 6. c3 {[%clk 0:02:57.9]} 6... Bd6 {[%clk 0:02:56.9]}
7. Bg3 {[%clk 0:02:55.1]} 7... Nc6 {[%clk 0:02:56.2]} 8. Nbd2 {[%clk 0:02:54.9]}
8... Qc7 {[%clk 0:02:53.6]} 9. Bd3 {[%clk 0:02:54.3]} 9... h6 {[%clk 0:02:47.2]}
10. O-O {[%clk 0:02:53.6]} 10... Bxg3 {[%clk 0:02:47.1]} 11. hxg3 {[%clk
0:02:52.6]} 11... O-O {[%clk 0:02:46.4]} 12. Qe2 {[%clk 0:02:52.2]} 12... Re8
{[%clk 0:02:45.9]} 13. Rae1 {[%clk 0:02:51.5]} 13... Bd7 {[%clk 0:02:41.6]} 14.
Ne5 {[%clk 0:02:51.4]} 14... a6 {[%clk 0:02:31.9]} 15. f4 {[%clk 0:02:49.9]}
15... Ne7 {[%clk 0:02:31.6]} 16. g4 {[%clk 0:02:49.2]} 16... Ne4 {[%clk
0:02:01]} 17. Nxe4 {[%clk 0:02:46.6]} 17... dxe4 {[%clk 0:02:01.9]} 18. Qxe4
{[%clk 0:02:45.3]} 18... f5 {[%clk 0:01:59.6]} 19. Qf3 {[%clk 0:02:37.7]} 19...
Bc6 {[%clk 0:01:55.6]} 20. Qh3 {[%clk 0:02:36.4]} 20... fxg4 {[%clk 0:01:30.3]}
21. Qxg4 {[%clk 0:02:35.3]} 21... Nf5 {[%clk 0:01:28.1]} 22. Nxc6 {[%clk
0:02:19.3]} 22... bxc6 {[%clk 0:01:24.7]} 23. Bxf5 {[%clk 0:02:19.8]} 23... exf5
{[%clk 0:01:24.9]} 24. Qxf5 {[%clk 0:02:20.1]} 24... Rf8 {[%clk 0:01:24.3]} 25.
Qe5 {[%clk 0:02:19.2]} 25... Qb7 {[%clk 0:01:21]} 26. b3 {[%clk 0:02:17.8]}
26... Rf6 {[%clk 0:01:15.7]} 27. Qc5 {[%clk 0:02:07.3]} 27... Raf8 {[%clk
0:01:12.9]} 28. Re7 {[%clk 0:02:05.8]} 28... Qc8 {[%clk 0:01:12.7]} 29. Qe5
{[%clk 0:01:44]} 29... Qg4 {[%clk 0:01:08.4]} 30. Re8 {[%clk 0:01:42.7]} 30...
Rxe8 {[%clk 0:01:02.3]} 31. Qxe8+ {[%clk 0:01:42.2]} 31... Kh7 {[%clk
0:01:03.2]} 32. Qe4+ {[%clk 0:01:42.3]} 32... Kh8 {[%clk 0:00:59.8]} 33. c4
{[%clk 0:01:41]} 33... Re6 {[%clk 0:00:49.2]} 34. Qf3 {[%clk 0:01:40.8]} 34...
Qf5 {[%clk 0:00:49.5]} 35. d5 {[%clk 0:01:39.3]} 35... cxd5 {[%clk 0:00:50.4]}
36. Qxd5 {[%clk 0:01:37]} 36... Qg4 {[%clk 0:00:40.6]} 37. c5 {[%clk 0:01:34.9]}
37... Re8 {[%clk 0:00:30.4]} 38. c6 {[%clk 0:01:34.5]} 38... Qg3 {[%clk
0:00:30.4]} 39. Qf3 {[%clk 0:01:31.6]} 39... Qg6 {[%clk 0:00:27.9]} 40. Rc1
{[%clk 0:01:31.4]} 40... Rc8 {[%clk 0:00:18]} 41. Qd5 {[%clk 0:01:26.8]} 41...
Qe8 {[%clk 0:00:16.2]} 42. Qc5 {[%clk 0:01:22.1]} 42... Qe2 {[%clk 0:00:13.2]}
43. c7 {[%clk 0:01:20]} 43... Qe6 {[%clk 0:00:08.9]} 44. Qe5 {[%clk 0:01:19]}
44... Qb6+ {[%clk 0:00:08.6]} 45. Kh2 {[%clk 0:01:19.1]} 45... a5 {[%clk
0:00:06.9]} 46. Rc5 {[%clk 0:01:16.3]} 46... Qg6 {[%clk 0:00:04]} 47. Rd5 {[%clk
0:01:14.5]} 47... Kh7 {[%clk 0:00:03.3]} 48. Rd8 {[%clk 0:01:12.9]} 48... Rxc7
{[%clk 0:00:03.7]} 49. Qxc7 {[%clk 0:01:12]} 49... Qh5+ {[%clk 0:00:04]} 50. Kg3
{[%clk 0:01:12.3]} 50... Qg6+ {[%clk 0:00:02.9]} 51. Kf2 {[%clk 0:01:12.5]}
51... Qc2+ {[%clk 0:00:02.4]} 52. Qxc2+ {[%clk 0:01:11.8]} 1-0

[Event "Late-Titled-Tuesday-Blitz-October-24-2023"]
[Site "Chess.com"]
[Date "2023.10.24"]
[Round "3"]
[White "Nikita_Klepikov"]
[Black "chesselephant"]
[Result "1-0"]
[WhiteElo "2319"]
[BlackElo "2573"]
[TimeControl "180+1"]
[EndTime "14:29:12 PDT"]
[Termination "Nikita_Klepikov won by resignation"]

1. e4 {[%clk 0:02:56.8]} 1... e5 {[%clk 0:02:58.9]} 2. Nf3 {[%clk 0:02:56.5]}
2... Nc6 {[%clk 0:02:53.9]} 3. Bb5 {[%clk 0:02:57]} 3... a6 {[%clk 0:02:53.4]}
4. Ba4 {[%clk 0:02:57.1]} 4... Nf6 {[%clk 0:02:51.7]} 5. Qe2 {[%clk 0:02:57.7]}
5... b5 {[%clk 0:02:45.7]} 6. Bb3 {[%clk 0:02:57.9]} 6... Be7 {[%clk 0:02:45.9]}
7. c3 {[%clk 0:02:57.9]} 7... O-O {[%clk 0:02:45.7]} 8. O-O {[%clk 0:02:58.6]}
8... d6 {[%clk 0:02:45.9]} 9. Rd1 {[%clk 0:02:59]} 9... Bg4 {[%clk 0:02:45.8]}
10. d3 {[%clk 0:02:56.4]} 10... Na5 {[%clk 0:02:45.2]} 11. Bc2 {[%clk
0:02:56.2]} 11... c5 {[%clk 0:02:45.3]} 12. Nbd2 {[%clk 0:02:56.9]} 12... Nc6
{[%clk 0:02:45.3]} 13. h3 {[%clk 0:02:57.3]} 13... Be6 {[%clk 0:02:43.8]} 14.
Nf1 {[%clk 0:02:57.8]} 14... Qc7 {[%clk 0:02:43.4]} 15. g4 {[%clk 0:02:58.3]}
15... d5 {[%clk 0:02:38.2]} 16. Ng3 {[%clk 0:02:58.8]} 16... d4 {[%clk 0:02:38]}
17. Nf5 {[%clk 0:02:56.8]} 17... Bd8 {[%clk 0:02:34.4]} 18. Kh2 {[%clk
0:02:55.3]} 18... dxc3 {[%clk 0:02:27.6]} 19. bxc3 {[%clk 0:02:55.2]} 19... b4
{[%clk 0:02:27.9]} 20. Bb2 {[%clk 0:02:44]} 20... bxc3 {[%clk 0:02:26.8]} 21.
Bxc3 {[%clk 0:02:44.9]} 21... Nd4 {[%clk 0:02:26.4]} 22. Bxd4 {[%clk 0:02:30.6]}
22... exd4+ {[%clk 0:02:12.7]} 23. Kh1 {[%clk 0:02:28.7]} 23... Bxf5 {[%clk
0:02:09.7]} 24. gxf5 {[%clk 0:02:27.4]} 24... Nh5 {[%clk 0:02:07.6]} 25. Rg1
{[%clk 0:02:15.3]} 25... Nf4 {[%clk 0:02:00.3]} 26. Qd2 {[%clk 0:02:12]} 26...
f6 {[%clk 0:01:52.1]} 27. Rg4 {[%clk 0:02:09.5]} 27... Nxh3 {[%clk 0:01:48.8]}
28. Bb3+ {[%clk 0:01:56.8]} 28... Kh8 {[%clk 0:01:45.9]} 29. Kg2 {[%clk
0:01:44.9]} 29... Ng5 {[%clk 0:01:42.4]} 30. Rh1 {[%clk 0:01:39.2]} 30... h6
{[%clk 0:01:23]} 31. Nh4 {[%clk 0:01:24.6]} 31... Kh7 {[%clk 0:01:02.6]} 32. Ng6
{[%clk 0:01:18.8]} 32... Re8 {[%clk 0:00:58.2]} 33. f4 {[%clk 0:01:11.3]} 33...
Nf7 {[%clk 0:00:56.6]} 34. Qf2 {[%clk 0:01:01.5]} 34... Nd6 {[%clk 0:00:40.9]}
35. Bd5 {[%clk 0:00:50.8]} 35... Rb8 {[%clk 0:00:40]} 36. Rgh4 {[%clk
0:00:44.3]} 36... Qd7 {[%clk 0:00:19.9]} 37. Be6 {[%clk 0:00:29.7]} 37... Rxe6
{[%clk 0:00:19.5]} 38. Nf8+ {[%clk 0:00:28.9]} 38... Kg8 {[%clk 0:00:18]} 39.
Nxd7 {[%clk 0:00:28.4]} 1-0

[Event "Late-Titled-Tuesday-Blitz-October-24-2023"]
[Site "Chess.com"]
[Date "2023.10.24"]
[Round "3"]
[White "aghasiyevkamal"]
[Black "Elsa167"]
[Result "0-1"]
[WhiteElo "2601"]
[BlackElo "2902"]
[TimeControl "180+1"]
[EndTime "14:29:13 PDT"]
[Termination "Elsa167 won by resignation"]

1. d4 {[%clk 0:02:59.2]} 1... Nf6 {[%clk 0:03:00.1]} 2. c4 {[%clk 0:02:58.1]}
2... e6 {[%clk 0:03:00.6]} 3. Nf3 {[%clk 0:02:56.8]} 3... d5 {[%clk 0:03:00.8]}
4. g3 {[%clk 0:02:55.4]} 4... Ne4 {[%clk 0:02:58.2]} 5. Bg2 {[%clk 0:02:53.3]}
5... f5 {[%clk 0:02:58.4]} 6. O-O {[%clk 0:02:53.3]} 6... Be7 {[%clk 0:02:58.4]}
7. b3 {[%clk 0:02:45.6]} 7... h5 {[%clk 0:02:55.2]} 8. Ba3 {[%clk 0:02:38.9]}
8... Nc6 {[%clk 0:02:52.1]} 9. Bxe7 {[%clk 0:02:36]} 9... Qxe7 {[%clk
0:02:52.2]} 10. Nbd2 {[%clk 0:02:27.6]} 10... g5 {[%clk 0:02:41.6]} 11. e3
{[%clk 0:02:10.4]} 11... h4 {[%clk 0:02:31.9]} 12. Rc1 {[%clk 0:02:06.1]} 12...
Bd7 {[%clk 0:02:16.9]} 13. Qe2 {[%clk 0:01:50.9]} 13... O-O-O {[%clk 0:02:06.7]}
14. b4 {[%clk 0:01:02.9]} 14... hxg3 {[%clk 0:01:10.5]} 15. hxg3 {[%clk
0:00:59.3]} 15... Rh6 {[%clk 0:00:47.9]} 16. Rfd1 {[%clk 0:00:37.3]} 16... Rdh8
{[%clk 0:00:47]} 17. b5 {[%clk 0:00:34.1]} 17... Nb4 {[%clk 0:00:34.7]} 18. cxd5
{[%clk 0:00:18.9]} 18... Qh7 {[%clk 0:00:29.3]} 19. Kf1 {[%clk 0:00:17.1]} 19...
exd5 {[%clk 0:00:27.2]} 20. Ng1 {[%clk 0:00:14.5]} 20... Rh2 {[%clk 0:00:26]}
21. a4 {[%clk 0:00:13.1]} 21... Nd3 {[%clk 0:00:17.1]} 22. Nxe4 {[%clk
0:00:11.5]} 22... fxe4 {[%clk 0:00:15.1]} 23. Rc3 {[%clk 0:00:08]} 23... Rxg2
{[%clk 0:00:13.9]} 24. Kxg2 {[%clk 0:00:07.5]} 24... Bh3+ {[%clk 0:00:14.1]} 0-1

[Event "Late-Titled-Tuesday-Blitz-October-24-2023"]
[Site "Chess.com"]
[Date "2023.10.24"]
[Round "3"]
[White "Agent-JL"]
[Black "Binary010"]
[Result "0-1"]
[WhiteElo "2569"]
[BlackElo "2856"]
[TimeControl "180+1"]
[EndTime "14:29:15 PDT"]
[Termination "Binary010 won on time"]

1. d4 {[%clk 0:03:00.9]} 1... Nf6 {[%clk 0:02:59.8]} 2. c4 {[%clk 0:03:01.2]}
2... e6 {[%clk 0:02:59.8]} 3. Nf3 {[%clk 0:03:01.5]} 3... d5 {[%clk 0:02:59.9]}
4. g3 {[%clk 0:03:01.8]} 4... Bb4+ {[%clk 0:02:48.1]} 5. Nbd2 {[%clk 0:02:55.9]}
5... dxc4 {[%clk 0:02:47.2]} 6. Qc2 {[%clk 0:02:50]} 6... b5 {[%clk 0:02:45.6]}
7. a4 {[%clk 0:02:40.4]} 7... c6 {[%clk 0:02:39.7]} 8. Bg2 {[%clk 0:02:39.4]}
8... a5 {[%clk 0:02:35.2]} 9. O-O {[%clk 0:02:08.3]} 9... O-O {[%clk 0:02:32.5]}
10. Ne5 {[%clk 0:01:59]} 10... Ra6 {[%clk 0:01:39.6]} 11. e3 {[%clk 0:01:23.2]}
11... Bd6 {[%clk 0:01:35.3]} 12. Nxc6 {[%clk 0:00:53.9]} 12... Nxc6 {[%clk
0:01:32.5]} 13. axb5 {[%clk 0:00:52.5]} 13... Nb4 {[%clk 0:01:29.7]} 14. Qxc4
{[%clk 0:00:47.5]} 14... Ra7 {[%clk 0:01:23.4]} 15. Nb3 {[%clk 0:00:39.3]} 15...
Qb6 {[%clk 0:00:56.5]} 16. Bd2 {[%clk 0:00:27.3]} 16... Bd7 {[%clk 0:00:50]} 17.
Bc6 {[%clk 0:00:20.8]} 17... Nxc6 {[%clk 0:00:36.8]} 18. bxc6 {[%clk 0:00:20.2]}
18... Bxc6 {[%clk 0:00:37.3]} 19. Nxa5 {[%clk 0:00:18.8]} 19... Bd5 {[%clk
0:00:34]} 20. Qc2 {[%clk 0:00:11.7]} 20... Rfa8 {[%clk 0:00:23.3]} 21. Rfc1
{[%clk 0:00:04.3]} 21... h6 {[%clk 0:00:23.2]} 22. b4 {[%clk 0:00:04.1]} 22...
Bxb4 {[%clk 0:00:16.5]} 23. Rcb1 {[%clk 0:00:02.1]} 23... Rxa5 {[%clk
0:00:13.9]} 24. Rxa5 {[%clk 0:00:02.2]} 24... Qxa5 {[%clk 0:00:12.5]} 25. Bxb4
{[%clk 0:00:02.2]} 25... Qa2 {[%clk 0:00:11.6]} 26. Qxa2 {[%clk 0:00:01.4]}
26... Rxa2 {[%clk 0:00:11.3]} 0-1

[Event "Late-Titled-Tuesday-Blitz-October-24-2023"]
[Site "Chess.com"]
[Date "2023.10.24"]
[Round "3"]
[White "akanga001"]
[Black "gunslinger222"]
[Result "0-1"]
[WhiteElo "2041"]
[BlackElo "2343"]
[TimeControl "180+1"]
[EndTime "14:29:15 PDT"]
[Termination "gunslinger222 won by resignation"]

1. d4 {[%clk 0:02:54.1]} 1... Nf6 {[%clk 0:02:59.4]} 2. c4 {[%clk 0:02:53.8]}
2... e6 {[%clk 0:02:58.3]} 3. Nf3 {[%clk 0:02:53.5]} 3... Bb4+ {[%clk 0:02:58]}
4. Bd2 {[%clk 0:02:50.7]} 4... Bxd2+ {[%clk 0:02:58]} 5. Qxd2 {[%clk 0:02:50.2]}
5... d5 {[%clk 0:02:58.2]} 6. Nc3 {[%clk 0:02:49.4]} 6... O-O {[%clk 0:02:58.3]}
7. e3 {[%clk 0:02:42]} 7... Nc6 {[%clk 0:02:57]} 8. a3 {[%clk 0:02:41.1]} 8...
Re8 {[%clk 0:02:57.1]} 9. Rd1 {[%clk 0:02:35.1]} 9... a6 {[%clk 0:02:52.4]} 10.
cxd5 {[%clk 0:02:34.1]} 10... exd5 {[%clk 0:02:51.7]} 11. h3 {[%clk 0:02:29]}
11... Bf5 {[%clk 0:02:49]} 12. Nh4 {[%clk 0:02:28.3]} 12... Ne4 {[%clk
0:02:40.3]} 13. Nxe4 {[%clk 0:02:26.1]} 13... Bxe4 {[%clk 0:02:39.3]} 14. Nf3
{[%clk 0:02:21.5]} 14... Bxf3 {[%clk 0:02:35.6]} 15. gxf3 {[%clk 0:02:21.2]}
15... Qf6 {[%clk 0:02:36.3]} 16. f4 {[%clk 0:02:19.3]} 16... Qxf4 {[%clk
0:02:34.8]} 17. Bd3 {[%clk 0:02:17.4]} 17... Qf3 {[%clk 0:02:28.1]} 18. Rh2
{[%clk 0:02:15.9]} 18... g6 {[%clk 0:02:20.5]} 19. Be2 {[%clk 0:02:15.2]} 19...
Qf6 {[%clk 0:02:13.6]} 20. h4 {[%clk 0:02:13.1]} 20... Re4 {[%clk 0:02:07.3]}
21. h5 {[%clk 0:02:12.2]} 21... Rh4 {[%clk 0:02:06.4]} 22. Rxh4 {[%clk
0:02:02.5]} 22... Qxh4 {[%clk 0:02:07.3]} 23. hxg6 {[%clk 0:02:03]} 23... hxg6
{[%clk 0:02:00.2]} 24. Bf3 {[%clk 0:02:03.1]} 24... Rd8 {[%clk 0:01:49.9]} 25.
Ke2 {[%clk 0:02:02.7]} 25... Qf6 {[%clk 0:01:45.3]} 26. Rh1 {[%clk 0:02:01.1]}
26... Re8 {[%clk 0:01:41.1]} 27. Bxd5 {[%clk 0:01:46]} 27... Nxd4+ {[%clk
0:01:38.2]} 28. Kd1 {[%clk 0:01:44.3]} 28... Rd8 {[%clk 0:01:28.9]} 29. exd4
{[%clk 0:01:37.2]} 29... Rxd5 {[%clk 0:01:28.3]} 30. Qh6 {[%clk 0:01:33.7]}
30... Qxd4+ {[%clk 0:01:19.9]} 31. Kc1 {[%clk 0:01:33.2]} 31... Qg7 {[%clk
0:01:02.9]} 32. Qe3 {[%clk 0:01:30]} 32... Rd8 {[%clk 0:00:55.7]} 33. Qe7 {[%clk
0:01:27]} 33... Qf8 {[%clk 0:00:43.7]} 34. Qe5 {[%clk 0:01:25.2]} 34... Qg7
{[%clk 0:00:38.7]} 35. Qe7 {[%clk 0:01:23.6]} 35... Qd4 {[%clk 0:00:33.7]} 36.
Kb1 {[%clk 0:01:20.5]} 36... Rf8 {[%clk 0:00:14.3]} 37. Qxc7 {[%clk 0:01:18.6]}
37... Qe4+ {[%clk 0:00:14.1]} 38. Ka2 {[%clk 0:01:16.7]} 38... Qxh1 {[%clk
0:00:14.2]} 39. Qc3 {[%clk 0:01:16.1]} 39... Qd5+ {[%clk 0:00:13.9]} 40. b3
{[%clk 0:01:15.5]} 40... Rd8 {[%clk 0:00:13.6]} 41. a4 {[%clk 0:01:16]} 41...
Qd2+ {[%clk 0:00:13.5]} 42. Qxd2 {[%clk 0:01:14.9]} 42... Rxd2+ {[%clk
0:00:14.4]} 43. Ka3 {[%clk 0:01:15.8]} 43... Rxf2 {[%clk 0:00:15.1]} 44. Kb4
{[%clk 0:01:16.7]} 44... Rf3 {[%clk 0:00:13.8]} 45. Ka5 {[%clk 0:01:17.6]} 45...
b5 {[%clk 0:00:11.3]} 46. b4 {[%clk 0:01:18.5]} 46... bxa4 {[%clk 0:00:11.2]}
47. Kxa4 {[%clk 0:01:17.6]} 47... Rf4 {[%clk 0:00:11.4]} 48. Ka5 {[%clk
0:01:17.7]} 48... Rxb4 {[%clk 0:00:11.5]} 49. Kxb4 {[%clk 0:01:17.5]} 49... g5
{[%clk 0:00:12.2]} 50. Ka5 {[%clk 0:01:18.4]} 50... g4 {[%clk 0:00:12.7]} 51.
Kxa6 {[%clk 0:01:19.3]} 51... g3 {[%clk 0:00:13.3]} 0-1

[Event "Late-Titled-Tuesday-Blitz-October-24-2023"]
[Site "Chess.com"]
[Date "2023.10.24"]
[Round "3"]
[White "KATPAH"]
[Black "jup1978"]
[Result "1-0"]
[WhiteElo "2643"]
[BlackElo "2487"]
[TimeControl "180+1"]
[EndTime "14:29:16 PDT"]
[Termination "KATPAH won on time"]

1. e4 {[%clk 0:03:00.1]} 1... e5 {[%clk 0:02:57.4]} 2. d4 {[%clk 0:03:00.2]}
2... exd4 {[%clk 0:02:55]} 3. c3 {[%clk 0:03:00.7]} 3... d5 {[%clk 0:02:54.1]}
4. exd5 {[%clk 0:03:00.2]} 4... Qxd5 {[%clk 0:02:51]} 5. cxd4 {[%clk 0:03:00.6]}
5... Nc6 {[%clk 0:02:49.8]} 6. Nf3 {[%clk 0:03:00.2]} 6... Bg4 {[%clk
0:02:48.4]} 7. Be2 {[%clk 0:02:59.8]} 7... O-O-O {[%clk 0:02:45.9]} 8. Nc3
{[%clk 0:02:59.3]} 8... Qf5 {[%clk 0:02:32.5]} 9. O-O {[%clk 0:02:54.1]} 9...
Kb8 {[%clk 0:02:24.4]} 10. Be3 {[%clk 0:02:52.8]} 10... Nf6 {[%clk 0:02:22.2]}
11. h3 {[%clk 0:02:52.1]} 11... h5 {[%clk 0:02:10.5]} 12. Qb3 {[%clk 0:02:42.2]}
12... Bd6 {[%clk 0:02:00.5]} 13. Nb5 {[%clk 0:02:29.7]} 13... Nd5 {[%clk
0:01:45.4]} 14. Nxd6 {[%clk 0:02:18.8]} 14... Rxd6 {[%clk 0:01:43.7]} 15. Bd3
{[%clk 0:02:05.8]} 15... Qe6 {[%clk 0:01:24.1]} 16. Ng5 {[%clk 0:02:00.4]} 16...
Qf6 {[%clk 0:01:19.2]} 17. Ne4 {[%clk 0:01:58.6]} 17... Qe7 {[%clk 0:01:14.3]}
18. Nxd6 {[%clk 0:01:57.8]} 18... Qxd6 {[%clk 0:01:15.2]} 19. Be4 {[%clk
0:01:51.9]} 19... Be6 {[%clk 0:01:12.8]} 20. Rac1 {[%clk 0:01:45.6]} 20... f5
{[%clk 0:01:09.1]} 21. Bf3 {[%clk 0:01:30]} 21... f4 {[%clk 0:01:03]} 22. Bd2
{[%clk 0:01:22.9]} 22... g5 {[%clk 0:01:01]} 23. Rfe1 {[%clk 0:01:19.9]} 23...
Nxd4 {[%clk 0:00:46.7]} 24. Qd3 {[%clk 0:01:19.3]} 24... Nxf3+ {[%clk
0:00:46.8]} 25. Qxf3 {[%clk 0:01:20.2]} 25... g4 {[%clk 0:00:47]} 26. Qe4 {[%clk
0:01:19]} 26... Bd7 {[%clk 0:00:40.5]} 27. Qe5 {[%clk 0:01:16.6]} 27... Qxe5
{[%clk 0:00:20.3]} 28. Rxe5 {[%clk 0:01:17.5]} 28... c6 {[%clk 0:00:20.1]} 29.
h4 {[%clk 0:01:14.9]} 29... Rf8 {[%clk 0:00:17.4]} 30. Rxh5 {[%clk 0:01:12.8]}
30... f3 {[%clk 0:00:15.4]} 31. g3 {[%clk 0:01:12.4]} 31... Bf5 {[%clk
0:00:13.7]} 32. Re1 {[%clk 0:01:10.5]} 32... Nb6 {[%clk 0:00:12.9]} 33. Bb4
{[%clk 0:01:09.3]} 33... Rf7 {[%clk 0:00:11.7]} 34. Re7 {[%clk 0:01:08.4]} 34...
Rxe7 {[%clk 0:00:09.9]} 35. Bxe7 {[%clk 0:01:09.3]} 35... Bb1 {[%clk 0:00:09.7]}
36. a3 {[%clk 0:01:08.3]} 36... Nd5 {[%clk 0:00:09.7]} 37. Bd6+ {[%clk
0:01:08.2]} 37... Kc8 {[%clk 0:00:09.9]} 38. Rg5 {[%clk 0:01:05.6]} 38... Kd7
{[%clk 0:00:10]} 39. Be5 {[%clk 0:01:04.8]} 39... Ke6 {[%clk 0:00:10.2]} 40. Bd4
{[%clk 0:01:05.2]} 40... b6 {[%clk 0:00:07.9]} 41. Rxg4 {[%clk 0:01:04.4]} 41...
c5 {[%clk 0:00:08.4]} 42. Bc3 {[%clk 0:01:04.6]} 42... Bf5 {[%clk 0:00:06.1]}
43. Rg8 {[%clk 0:01:03.9]} 43... b5 {[%clk 0:00:06.4]} 44. Rb8 {[%clk
0:01:00.5]} 44... a6 {[%clk 0:00:02.4]} 45. h5 {[%clk 0:01:00.9]} 1-0